Cogmind - Beta 14 *** ADVENTURER MODE // 2024.08.24 @ 05:05:58 Player: Ms. V3-11A Result: Destroyed by Y-45 Defender with Heavy Assault Rifle Performance ------------- Evolutions (0) 0 Regions Visited (3) 600 Robots Destroyed (40) 200 Value Destroyed (1010) 1010 Prototype IDs (17) 340 Alien Tech Used (0) 0 Bonus (0) 0 TOTAL SCORE: 2150 Bonus ------- None Cogmind --------- Core Integrity 0/250 Matter 175/300 Energy 100/100 System Corruption 2% Temperature Warm (117) Movement Rolling (145) Ox3 Location -9/Recycling Parts ------- > --- POWER (1) -------- Subdweller Power Source (fused) > --- PROPULSION (2) --- Light Treads Compact Wheel > --- UTILITY (2) ------ High-capacity Storage Unit > --- WEAPON (2) ------- Riot Gun Beam Cannon > --- INVENTORY (20) --- Subdweller Monowheel Large Storage Unit Small Matter Pod (50) Subdweller Optics Subdweller Optics Subdweller Optics Subdweller Optics Seismic Detector Light Armor Plating Gun Armor Scrap Shield Beam Cannon Subdweller Machine Gun Battle Cannon Subdweller Shrapnel Launcher Makeshift Hammer Shrapnel Trap Shrapnel Trap Peak State ------------ > --- POWER ------------ Ion Engine > --- PROPULSION ------- Light Treads Light Treads > --- UTILITY ---------- High-capacity Storage Unit Light Armor Plating > --- WEAPON ----------- Autobeam Makeshift Hammer > --- INVENTORY -------- Light Treads Light Treads Subdweller Monowheel Large Storage Unit Small Matter Pod Subdweller Optics Seismic Detector Light Armor Plating Light Armor Plating Scrap Shield Beam Cannon Beam Cannon Subdweller Beam Cannon Light Assault Rifle Grenade Launcher Shrapnel Trap [Rating: 13] Favorites ----------- Power Ion Engine Engine Ion Engine Propulsion Light Treads Treads Light Treads Leg Aluminum Leg Wheel Compact Wheel Utility High-capacity Storage Unit Device Seismic Detector Storage High-capacity Storage Unit Protection Light Armor Plating Weapon Beam Cannon Energy Gun Autobeam Energy Cannon Beam Cannon Ballistic Gun Subdweller Machine Gun Launcher Subdweller Shrapnel Launcher Impact Weapon Makeshift Hammer Build | -11 -10 -10 -9 ------- Run | Yrd Mat Sub Rec Slots Evolved . | . . . . Power . | . . . . Propulsion . | . . . . Utility . | . . . . Weapon . | . . . . Parts Attached 39 | . 8 28 3 Power 4 | . . 4 . Engine 4 | . . 4 . Core . | . . . . Reactor . | . . . . Propulsion 14 | . 4 8 2 Treads 10 | . 2 8 . Leg 2 | . 2 . . Wheel 2 | . . . 2 Hover . | . . . . Flight . | . . . . Utility 5 | . 2 3 . Device 1 | . 1 . . Storage 1 | . 1 . . Processor . | . . . . Hackware . | . . . . Protection 3 | . . 3 . Artifact . | . . . . Weapon 16 | . 2 13 1 Energy Gun 3 | . 1 1 1 Energy Cannon 6 | . . 6 . Ballistic Gun 5 | . 1 4 . Ballistic Cannon . | . . . . Launcher 1 | . . 1 . Special Weapon . | . . . . Impact Weapon 1 | . . 1 . Slashing Weapon . | . . . . Piercing Weapon . | . . . . Special Melee Weapon . | . . . . Unidentified Prototypes . | . . . . Corrupted Parts 1 | . . 1 . System Corruption 2 | . . 2 . Parts Lost 13 | . 2 9 2 Power 2 | . . 2 . Propulsion 5 | . 1 3 1 Utility 2 | . . 1 1 Weapon 4 | . 1 3 . Highest Loss Streak 3 | . 1 3 2 To Critical Strikes 1 | . . 1 . Average Slot Usage (%) 98 | . 96 99 83 Engine 13 | . 14 13 14 Treads 21 | . 2 27 14 Leg 5 | . 22 . . Device 3 | . 13 . . Storage 14 | . 14 14 14 Protection 9 | . . 13 . Energy Gun 10 | . 20 8 14 Energy Cannon 7 | . . 9 14 Ballistic Gun 8 | . 7 9 . Peak Build Rating 13 | 6 9 13 13 Average Rating 10 | 6 7 11 12 On Entrance 8 | 6 6 9 13 Naked Turns . | . . . . Heaviest Build 61 | 11 47 61 59 Greatest Support 40 | 20 40 40 40 Greatest Overweight (x) 4 | . 4 1 3 Average Overweight (x) 1 | . 1 1 2 Largest Inventory Capacity 20 | 8 20 20 20 Average Capacity 19 | 8 18 20 20 Most Carried 20 | 5 20 20 19 Average Carried 16 | 5 11 17 18 Final Capacity 20 | 8 20 20 20 Final Carried 20 | 4 20 19 19 Class Distribution -------------------- 100% | Mutant Dominant Class ---------------- Mutant | -10/Materials Mutant | -10/Subcaves Mutant | -9/Recycling Resources | -11 -10 -10 -9 ----------- Run | Yrd Mat Sub Rec Matter Collected 796 | 200 114 482 . Remotely . | . . . . Salvage Created 1079 | . 309 710 60 Parts 65 | . 24 40 1 Haulers Intercepted 1 | . 1 . . Recyclers Shooed . | . . . . Parts Field Recycled . | . . . . Retrieved Matter . | . . . . Parts Self-Destructed 12 | . . 12 . Prevented 1 | . . 1 . Kills | -11 -10 -10 -9 ------- Run | Yrd Mat Sub Rec Combat Hostiles Destroyed 36 | . 13 22 1 Guns 23 | . 10 13 . Cannons 3 | . . 2 1 AOE 9 | . 3 6 . Classes Destroyed 7 | . 4 2 1 Worker 1 | . 1 . . Hauler 1 | . 1 . . Turret 2 | . . 2 . Swarmer 17 | . 10 7 . Grunt 3 | . 3 . . Sentry 1 | . . . 1 Subdweller 15 | . . 15 . Best Kill Streak 6 | . 4 6 1 Combat Bots Only 4 | . 3 4 1 Max Kills in Single Turn 3 | . 3 2 1 Gunslinging . | . . . . Exploded 3 | . 3 2 . Melee . | . . . . Uniques/NPCs Destroyed . | . . . . Combat | -11 -10 -10 -9 -------- Run | Yrd Mat Sub Rec Hostile Shots Fired 214 | . 58 146 10 Missed 63 | . 16 46 1 Damage Taken 1788 | . 399 1288 101 Core 259 | . 50 195 14 Absorbed by Shields . | . . . . Ignored by Resistances 524 | . 126 369 29 Core Remaining (%) 100 | 100 . . . Volleys Fired 147 | . 27 116 4 Largest 2 | . 2 2 2 Hottest 110 | . 90 85 110 Shots Fired 259 | . 50 203 6 Gun 202 | . 50 150 2 Cannon 55 | . . 51 4 Launcher 2 | . . 2 . Special . | . . . . Kinetic 94 | . 16 78 . Thermal 142 | . 34 104 4 Explosive . | . . . . Electromagnetic 23 | . . 21 2 Robot Hit Streak 34 | . 34 21 29 Robot Miss Streak 4 | . 4 3 . Penetration Max . | . . . . Secondary Targets . | . . . . Autonomous 53 | . . 53 . Shots Hit Robots 203 | . 40 157 6 Core Hits 80 | . 18 60 2 Critical Kills 2 | . . 2 . Critical Parts Destroyed . | . . . . Critical Strikes 6 | . . 6 . Meltdown 1 | . . 1 . Destroy 3 | . . 3 . Corrupt 2 | . . 2 . Melee Attacks 1 | . . 1 . Impact 1 | . . 1 . Slashing . | . . . . Piercing . | . . . . Sneak Attacks . | . . . . Combat Hostiles . | . . . . Follow-up Attacks . | . . . . Damage Inflicted 3459 | . 754 2595 110 Guns 2140 | . 444 1656 40 Cannons 650 | . . 580 70 Explosions 669 | . 310 359 . Melee . | . . . . Ramming . | . . . . Kinetic 1073 | . 121 952 . Thermal 2110 | . 633 1407 70 Explosive . | . . . . Electromagnetic 276 | . . 236 40 Impact . | . . . . Slashing . | . . . . Piercing . | . . . . Highest Corruption 2 | . . 2 2 Average Corruption 2 | . . 2 2 Corruption Purged . | . . . . Corruption Blocked . | . . . . Effects 61 | . . 60 1 Message Errors 13 | . . 13 . Matter Fused 17 | . . 17 . Heat Flow Errors 7 | . . 6 1 Energy Discharges 11 | . . 11 . Parts Rejected 1 | . . 1 . Parts Fused 2 | . . 2 . Data Loss (minor) 8 | . . 8 . Data Loss (major) 1 | . . 1 . Misfires 1 | . . 1 . Overload Shots . | . . . . Overflow Damage 205 | . 193 12 . Projectiles . | . . . . Explosions 205 | . 193 12 . Melee . | . . . . Knockbacks . | . . . . Impact . | . . . . Kinetic . | . . . . Secondary . | . . . . Self-Inflicted Damage 113 | . 113 . . Shots 2 | . 2 . . Rammed . | . . . . Targets Rammed . | . . . . Kicked . | . . . . Crushed . | . . . . Highest Temperature 480 | . 140 480 104 Average Temperature 99 | . 50 118 58 Received Heat Transfer 540 | . 102 402 36 Effects 4 | . . 4 . Shutdowns 2 | . . 2 . Energy Bleed 1 | . . 1 . Damage (minor) 1 | . . 1 . Siege Activations . | . . . . Robots Corrupted . | . . . . Combat Hostiles . | . . . . Parts Fried 1 | . . 1 . Impact Corruptions . | . . . . Robots Melted 1 | . . 1 . Combat Hostiles 1 | . . 1 . Parts Melted 7 | . . 7 . Heat Transferred 4744 | . 884 3712 148 Parts Sabotaged . | . . . . Parts Stolen . | . . . . Parts Stripped . | . . . . Power Chain Reactions 2 | . . 2 . Alert | -11 -10 -10 -9 ------- Run | Yrd Mat Sub Rec Peak Influence 304 | . 304 . 33 Initial 28 | . . . 28 Average 134 | . 142 . 27 Maximum Alert Level 1 | . 1 . . Low Security (%) 78 | 100 76 . 100 Level 1 21 | . 23 . . Level 2 . | . . . . Level 3 . | . . . . Level 4 . | . . . . Level 5 . | . . . . High Security . | . . . . Max Security . | . . . . Squads Dispatched 1 | . 1 . . Investigation 1 | . 1 . . Extermination . | . . . . Reinforcement . | . . . . Assault . | . . . . Garrison . | . . . . Intercept . | . . . . Searches Triggered . | . . . . Construction Impeded . | . . . . Haulers Reinforced . | . . . . Active Scanning Responses . | . . . . Cargo Convoy Interrupts . | . . . . Stealth | -11 -10 -10 -9 --------- Run | Yrd Mat Sub Rec Distress Signals 3 | . 3 . . Communications Jammed . | . . . . Distress Signals . | . . . . Times Spotted 61 | . 22 37 2 Peak Tracking Total 5 | . 5 4 1 Tactical Retreats 6 | . 3 3 . Traps | -11 -10 -10 -9 ------- Run | Yrd Mat Sub Rec Traps Triggered 1 | . 1 . . Indirectly . | . . . . Trap Hack Attempts . | . . . . Triggered . | . . . . Disarmed . | . . . . Reprogrammed . | . . . . Reused . | . . . . Traps Extracted . | . . . . Installed . | . . . . Triggered 3 | . . 3 . Most Traps Carried 2 | . . 2 2 Machines | -11 -10 -10 -9 ---------- Run | Yrd Mat Sub Rec Machines Disabled 3 | . 3 . . Max in Single Turn 3 | . 3 . . Machines Repaired . | . . . . Machines Dismantled . | . . . . Machines Sabotaged . | . . . . Overloaded Fab Kills . | . . . . Hacking | -11 -10 -10 -9 --------- Run | Yrd Mat Sub Rec Machines Accessed 10 | . 8 1 1 Terminals 9 | . 8 . 1 Fabricators . | . . . . Repair Stations . | . . . . Recycling Units . | . . . . Scanalyzers . | . . . . Garrison Access . | . . . . Total Hacks 40 | . 30 5 5 Successful 27 | . 21 5 1 Failed 12 | . 8 . 4 Catastrophic 1 | . . . 1 Database Lockouts 1 | . 1 . . Manual 27 | . 22 . 5 Terminals 35 | . 30 . 5 Fabricators . | . . . . Repair Stations . | . . . . Recycling Units . | . . . . Scanalyzers . | . . . . Garrison Access . | . . . . Terminal Hacks 18 | . 12 5 1 Record 4 | . . 4 . Robot Analysis 3 | . 3 . . Prototype ID Bank 5 | . 5 . . Unreport Threat 1 | . 1 . . Locate Traps 1 | . 1 . . Zone Layout 3 | . 2 . 1 Derelict Proto ID Bank 1 | . . 1 . Fabricator Hacks . | . . . . Repair Station Hacks . | . . . . Recycling Unit Hacks . | . . . . Scanalyzer . | . . . . Garrison Access Hacks . | . . . . Unauthorized Hacks 9 | . 9 . . Terminals 9 | . 9 . . Botnet 4 | . 4 . . Skim 5 | . 5 . . Fabricators . | . . . . Repair Stations . | . . . . Recycling Units . | . . . . Scanalyzers . | . . . . Garrison Access . | . . . . Data Cores Recovered . | . . . . Used . | . . . . Hacking Detections 9 | . 8 . 1 Full Trace Events . | . . . . Feedback Events . | . . . . Feedback Blocked . | . . . . Robot Schematics Acquired . | . . . . Robots Built . | . . . . Authchips . | . . . . Time . | . . . . Total Robot Build Rating . | . . . . Part Schematics Acquired . | . . . . Parts Built . | . . . . Authchips . | . . . . Time . | . . . . Total Part Build Rating . | . . . . Parts Repaired . | . . . . Time . | . . . . Parts Recycled . | . . . . Recycled Matter . | . . . . Retrieved Matter . | . . . . Retrieved Components . | . . . . Parts Scanalyzed . | . . . . Part Schematics Acquired . | . . . . Parts Damaged . | . . . . Bothacking | -11 -10 -10 -9 ------------ Run | Yrd Mat Sub Rec Used RIF Installer . | . . . . Robots Hacked . | . . . . Non-combat . | . . . . Combat . | . . . . Robot Hacks Applied . | . . . . Relay Couplers Released . | . . . . Fabnet Peak Effective % . | . . . . Robots Rewired . | . . . . Allies Hacked . | . . . . Hacks Repelled . | . . . . Allies | -11 -10 -10 -9 -------- Run | Yrd Mat Sub Rec Total Allies . | . . . . Largest Group . | . . . . Highest-Rated Group . | . . . . Highest-Rated Ally . | . . . . Total Orders . | . . . . Ally Attacks . | . . . . Total Damage . | . . . . Kills . | . . . . Allies Corrupted . | . . . . Allies Melted . | . . . . Intel | -11 -10 -10 -9 ------- Run | Yrd Mat Sub Rec Robot Analysis Total 3 | . 3 . . Derelict Logs Recovered 1 | . . 1 . Drone Launches . | . . . . Drone Recoveries . | . . . . Exploration | -11 -10 -10 -9 ------------- Run | Yrd Mat Sub Rec Turns Passed 5441 | 1 1234 4108 98 Spaces Moved 2066 | 1 441 1566 58 Core . | . . . . Treads 1583 | . 16 1566 1 Legs 426 | 1 425 . . Wheels 57 | . . . 57 Hover . | . . . . Flight . | . . . . Fastest Speed 120 | 120 120 240 130 Average Speed 233 | 120 220 240 143 Slowest Speed 400 | 120 400 240 240 Overloaded Moves . | . . . . Propulsion Burnouts . | . . . . Robots Hopped . | . . . . Cave-ins Triggered . | . . . . Exploration Rate (%) 44 | 2 80 77 18 Regions Visited 3 Branch Regions 2 Pre-discovered Areas . | . . . . Known Exits Taken 1 | . 1 . . Unknown Exits Taken 2 | 1 . 1 . Scrap Searched 3 | . . 3 . Spaces Dug . | . . . . Terrain Destroyed 70 | . 39 31 . Melee . | . . . . Projectile . | . . . . AOE 70 | . 39 31 . Terrain Rammed . | . . . . Walls Destroyed . | . . . . Machines Disabled . | . . . . Actions | -11 -10 -10 -9 --------- Run | Yrd Mat Sub Rec Total 2503 | 2 658 1777 66 Wait 190 | . 157 33 . Move 2063 | . 440 1565 58 Hop . | . . . . Pick Up 40 | . 21 19 . Fast Attach 2 | . . 1 1 Attach 25 | . 6 18 1 Detach 6 | . 2 3 1 Swap 12 | . 2 9 1 Drop 17 | 2 3 12 . Fire 147 | . 27 116 4 Melee 1 | . . 1 . Ram . | . . . . Kick . | . . . . Crush . | . . . . Escape Stasis . | . . . . Rewire . | . . . . Trap . | . . . . Miscellaneous . | . . . . Route ------- -11/Scrapyard -10/Materials (discovered 5 exits: *Mat x3 / *Min / *Sub) -10/Subcaves (discovered 3 exits: *Mat x2 / *Rec) -9/Recycling History --------- Turn | Location | Event 2 | -11/Scrapyard | Discovered new exit (range 0) 2 | -11/Scrapyard | Entered Materials 145 | -10/Materials | Discovered new exit (range 9) 309 | -10/Materials | Build established: Mutant 554 | -10/Materials | Discovered new exit (range 16) 861 | -10/Materials | Identified exit to Mines 861 | -10/Materials | Identified exit to Subcaves 934 | -10/Materials | Identified exit to Materials 934 | -10/Materials | Learned location of 1 exit from Materials 955 | -10/Materials | Learned location of 2 exits from Materials 967 | -10/Materials | Learned 4 Subcaves zone layouts 1021 | -10/Materials | Learned location of 1 exit from Storage 1184 | -10/Materials | Central database locked down 1236 | -10/Materials | Entered Subcaves 1237 | -10/Subcaves | Identified exit to Materials 1355 | -10/Subcaves | Learned Materials terminal intel 1427 | -10/Subcaves | Discovered exit to Materials (range 15) 1533 | -10/Subcaves | Discovered new exit (range 11) 1572 | -10/Subcaves | Lost 3 parts (1p1n1w) 1874 | -10/Subcaves | Shifting Twisted Machinery released Mak. Hammer 1875 | -10/Subcaves | Shifting Twisted Machinery released Sub. Beam Cannon 2050 | -10/Subcaves | Core integrity fell below 50% 2171 | -10/Subcaves | A swath of the cavern ceiling suddenly collapsed 2198 | -10/Subcaves | Shifting Twisted Machinery released Multitool 2223 | -10/Subcaves | Shifting Twisted Machinery released Sub. Laser 2658 | -10/Subcaves | A Subdweller sparked back to life 2658 | -10/Subcaves | A Subdweller sparked back to life 2714 | -10/Subcaves | Found Prototype Protection 3028 | -10/Subcaves | A swath of the cavern ceiling suddenly collapsed 3566 | -10/Subcaves | Visited 4L-MR0's lab 3579 | -10/Subcaves | Identified Gun Armor 3632 | -10/Subcaves | Core integrity fell below 20% 5344 | -10/Subcaves | Entered Recycling 5442 | -9/Recycling | Destroyed by Y-45 Defender with Heavy Assault Rifle Last Messages --------------- 05245_ System corrupted: Matter fused (-8). 05276_ System corrupted: Lgt. Armor Plating fused. 05277_ Destroyed Flight Unit. 05277_ S-10 Pest destroyed. 05336_ Acquired 12 matter. 05342_ System corrupted: Component data lost. LOCATION=UNKNOWN GOAL=ESCAPE 05345_ Y-45 Defender springs to life. 05346_ Lgt. Armor Plating destroyed. 05346_ Lgt. Treads destroyed. 05356_ Y-45 Defender destroyed. 05374_ Acquired Com. Wheel. 05403_ Connecting with Terminal... 05403_ Current location identified: Recycling >>Layout(Zone) Retrieving Zone 7J layout... Downloaded map data. 05440_ Y-45 Defender springs to life. 05442_ System corrupted: Heat flow error (+108). Map ----- +----------------------------------------------------+ | ?????????????????????????????????????????????????? | | ?????????????????????????????????????????????????? | | ?????????????????????????????????????????????????? | | ?????????????????????????????????????????????????? | | ?????????????????????????????????????????????????? | | ?????????????????????????????????????????????????? | | ?????????????????????????????????????????????????? | | ?????????????????????????????????????????????????? | | ?????????????????????????????????????????????????? | | ?????????????????????????????????????????????????? | | ?????????????????????????????????????????????????? | | ?????????????????????????????????????????????????? | | ?????????????????????????????????????????????????? | | ?????????????????????????????????????????????????? | | ?????????????????????????????????????????????????? | | ?????????????????????????????????????????????????? | | ?????????????????????????????????????????????????? | | ?????????????????????????????????????????????????? | | ?????????????????????????????????????????????????? | | ????????????????????????????????????????????????## | | ??????????????????????????????##??????########## # | | ?????????????????????????????? #??????# | | ??????????????????????????????##??????# | | ??????????????????????????????#???????# | | ?????????????"" #####r############### | | ?????????????"Y @ r # | | ?????????????"" + | | ?????????????## Y # | | ??????????????# r### ############### # | | ??????????????#?????#???????????????# # | | ??????????????????????????????####### # | | ?????????????????????????????? # # | | ?????????????????????????????? # # | | ?????????????????????????????? # ##+######### | | ?????????????????????????????? # #??###??? | | ??????????????????????????????###+### ####T#### | | ?????????????????????????? | | ????????????????????????? | | ?????????????????????????? | | ??????????????????????????##### ###########+##### | | ??????????????????????????????### #?# | | ????????????????????????????????# #?# | | ????????????????????????????????# #?# | | ????????????????????????????????# #?# | | ????????????????????????????????###############?# | | ????????????????????????????????????????????????# | | ??????????????????????????????????????########### | | ??????????????????????????????????????# ! # | | ?????????????????????????????????????## # | | ?????????????????????????????????????# ! !# | +----------------------------------------------------+ Best States ------------- Heat Dissipation 25 Energy Generation 15 Energy Capacity 250 Matter Stores 300 Matter Capacity 300 Sight Range 16 Terrain Scan Density 10 Armor Coverage 150 Resistance: KI 20 Resistance: TH 20 Resistance: EX 20 Resistance: EM 20 Resistance: I 20 Resistance: S 20 Resistance: P 20 Evasion (%) 55 Recoil Reduction 2 Offensive Hacking 10 Item Schematics ----------------- None Robot Schematics ------------------ None Fabricated ------------ Nothing Alien Tech Used ----------------- None Achievements -------------- None Challenges ------------ None Game ------ Seed CargoForceCycler Manual? 0 Play Time 00:24:16 Cumulative 309.0 hours Start 2024.08.24 @ 04:24:24 End 2024.08.24 @ 05:05:58 Sessions 1 Manual Loads 0 Difficulty Adventurer Special Mode None Game No. 238 Rogue 63 Adventurer 149 Explorer 26 Win Type - Total 1 Types 1/0/0/0/0/0/0/0/0 Lore% 76 Gallery% 72 Achievement% 68 Wizard Run 0 Options --------- Layout 2 ASCII 0 Keyboard 0 Movement Mouse Keybinds 0 Fullscreen 0 Font 18/CogNarrow Map View 64x51 Zoom Use 0% Tactical HUD 1 Map Filters NONE Filters BRIGHTNESS(115)|SATURATION(100)|LOW_CONTRAST(0,16,30) Steam 1 RUN: 5891352f-e6da-4c40-a9f5-18e28dd0ee57